[Event "Najdorf Memorial-A 2022"]
[Site "Warsaw"]
[Date "2022.07.10"]
[Round "2.12"]
[White "Stachecki, Mikolaj"]
[Black "Sowul, Bartosz"]
[Result "1/2-1/2"]
[ECO "B56"]
[WhiteElo "1918"]
[BlackElo "2283"]
[Annotator "RC"]
[PlyCount "117"]
[EventDate "2022.07.09"]
[EventType "swiss"]
[EventCountry "POL"]
[SourceTitle "playchess.com"]
[Source "ChessBase"]
[SourceQuality "1"]
[TimeControl "40/5400+30:1800+30"]

1. e4 {[%emt 0:00:03]} c5 {[%emt 0:00:05]} 2. Nf3 {[%emt 0:00:15]} Nc6 {[%emt 0:00:18]} 3. d4 {[%emt 0:00:09]} cxd4 {[%emt 0:00:04]} 4. Nxd4 {[%emt 0:00:06]} Nf6 {[%emt 0:00:05]} 5. Nc3 {[%emt 0:00:08]} d6 {[%emt 0:00:07]} 6. f3 {[%emt 0:00:51]} e5 {[%emt 0:00:13]} 7. Nb3 {[%emt 0:00:07]} Be6 {[%emt 0:00:04]} 8. Be3 {[%emt 0:00:24]} d5 {[%emt 0:00:22]} 9. exd5 {[%emt 0:01:09]} Nxd5 {[%emt 0:00:06]} 10. Nxd5 {[%emt 0:00:08]} Qxd5 {[%emt 0:00:07]} 11. Qxd5 {[%emt 0:00:31]} Bxd5 {[%emt 0:00:07]} 12. O-O-O {[%emt 0:00:13]} O-O-O {[%emt 0:00:04]} 13. Bb5 {[%emt 0:11:12]} a6 {[%emt 0:01:23]} 14. Bxc6 {[%emt 0:00:35]} Bxc6 {[%emt 0:00:07]} 15. Rxd8+ {[%emt 0:14:53]} Kxd8 {[%emt 0:00:09]} 16. Na5 {[%emt 0:00:40]} Kc7 {[%emt 0:05:36]} 17. Rd1 {[%emt 0:07:13]} Bb5 {[%emt 0:03:55]} 18. c4 {[%emt 0:22:08]} Ba4 {[%emt 0:07:11]} 19. Rd5 {[%emt 0:02:56]} f6 {[%emt 0:01:35]} 20. f4 {[%emt 0:05:54]} b6 {[%emt 0:25:25]} 21. fxe5 {[%emt 0:17:39]} bxa5 {[%emt 0:00:46]} 22. Rxa5 {[%emt 0:00:10]} Bc6 {[%emt 0:01:17]} 23. exf6 {[%emt 0:00:08]} gxf6 {[%emt 0:01:22]} 24. Rxa6 {[%emt 0:00:24]} Bd6 {[%emt 0:02:19]} 25. g3 {[%emt 0:04:22]} Re8 {[%emt 0:02:45]} 26. Kd2 {[%emt 0:02:31]} f5 {[%emt 0:32:38]} 27. a3 {[%emt 0:01:55]} h5 {[%emt 0:00:52]} 28. b4 {[%emt 0:02:10]} h4 {[%emt 0:01:27]} 29. c5 {[%emt 0:01:16]} Be5 {[%emt 0:02:06]} 30. Ra7+ {[%emt 0:00:56]} Kb8 {[%emt 0:03:28]} 31. Rf7 {[%emt 0:00:29]} hxg3 {[%emt 0:08:32]} 32. hxg3 {[%emt 0:00:05]} Rd8+ {[%emt 0:00:17]} 33. Ke2 {[%emt 0:03:38]} Bb5+ {[%emt 0:00:30]} 34. Kf2 {[%emt 0:00:39]} Rd1 {[%emt 0:00:59]} 35. Kg2 {[%emt 0:01:21]} Rd3 {[%emt 0:01:00]} 36. Bf4 {[%emt 0:00:33]} Bc6+ {[%emt 0:00:27]} 37. Kg1 {[%emt 0:00:25]} Bxf4 {[%emt 0:00:30]} 38. gxf4 {[%emt 0:00:07]} Rg3+ {[%emt 0:00:06]} 39. Kh2 {[%emt 0:00:29]} Rg2+ {[%emt 0:00:57]} 40. Kh3 {[%emt 0:00:00]} Rb2 {[%emt 0:00:00]} 41. Kh4 {[%emt 0:04:14]} Be4 {[%emt 0:03:14]} 42. Kg5 {[%emt 0:02:23]} Rb3 {[%emt 0:02:50]} 43. Rf8+ {[%emt 0:19:10]} Kc7 {[%emt 0:03:15]} 44. Rf7+ {[%emt 0:00:07]} Kc8 {[%emt 0:01:18]} 45. Ra7 {[%emt 0:01:44]} Kb8 {[%emt 0:09:16]} 46. Ra6 {[%emt 0:01:05]} Kc7 {[%emt 0:00:37]} 47. Kf6 {[%emt 0:00:43]} Bd3 {[%emt 0:01:42]} 48. Ra7+ {[%emt 0:00:36]} Kb8 {[%emt 0:03:30]} 49. Ra5 {[%emt 0:00:38]} Kb7 {[%emt 0:00:25]} 50. Ke5 {[%emt 0:00:33]} Kc6 {[%emt 0:06:18]} 51. Ra8 {[%emt 0:00:44]} Rb1 {[%emt 0:00:47]} 52. Rc8+ {[%emt 0:03:42]} Kb7 {[%emt 0:01:47]} 53. Rh8 {[%emt 0:00:29]} Be4 {[%emt 0:00:55]} 54. Rh6 {[%emt 0:00:32]} Ra1 {[%emt 0:01:36]} 55. Rh7+ {[%emt 0:01:49]} Kb8 {[%emt 0:00:23]} 56. b5 {[%emt 0:00:35]} Rxa3 {[%emt 0:00:20]} 57. Kf6 {[%emt 0:00:27]} Rc3 {[%emt 0:00:38]} 58. Rh8+ {[%emt 0:00:09]} Kb7 {[%emt 0:00:35]} 59. Rh7+ {[%emt 0:00:34]} 1/2-1/2

[Event "Najdorf Memorial-A 2022"]
[Site "Warsaw"]
[Date "2022.07.10"]
[Round "2.12"]
[White "Gasiorek, Dariusz"]
[Black "Golecki, Jan"]
[Result "0-1"]
[ECO "E21"]
[WhiteElo "1854"]
[BlackElo "2219"]
[Annotator "RC"]
[PlyCount "72"]
[EventDate "2022.07.09"]
[EventType "swiss"]
[EventCountry "POL"]
[SourceTitle "playchess.com"]
[Source "ChessBase"]
[SourceQuality "1"]
[TimeControl "40/5400+30:1800+30"]

1. d4 {[%emt 0:11:03]} Nf6 {[%emt 0:00:07]} 2. c4 {[%emt 0:00:07]} e6 {[%emt 0:00:08]} 3. Nf3 {[%emt 0:00:34]} b6 {[%emt 0:00:05]} 4. Nc3 {[%emt 0:07:58]} Bb4 {[%emt 0:00:08]} 5. Qb3 {[%emt 0:02:48]} Qe7 {[%emt 0:01:01]} 6. Bg5 {[%emt 0:03:31]} Bb7 {[%emt 0:00:46]} 7. e3 {[%emt 0:03:54]} h6 {[%emt 0:00:20]} 8. Bh4 {[%emt 0:06:25]} c5 {[%emt 0:05:19]} 9. a3 {[%emt 0:17:37]} Ba5 {[%emt 0:00:23]} 10. dxc5 {[%emt 0:04:22]} Na6 {[%emt 0:00:49]} 11. O-O-O {[%emt 0:10:28]} Nxc5 {[%emt 0:03:30]} 12. Qc2 {[%emt 0:00:56]} Bxc3 {[%emt 0:00:12]} 13. Qxc3 {[%emt 0:00:33]} Nce4 {[%emt 0:00:19]} 14. Qd4 {[%emt 0:04:01]} d6 {[%emt 0:00:05]} 15. Nd2 {[%emt 0:07:04]} g5 {[%emt 0:02:14]} 16. Nxe4 {[%emt 0:03:42]} Nxe4 {[%emt 0:00:07]} 17. Qxh8+ Kd7 18. Qxh6 {[%emt 0:07:40]} gxh4 {[%emt 0:00:01]} 19. Qf4 {[%emt 0:00:50]} e5 {[%emt 0:00:21]} 20. Qf5+ {[%emt 0:00:41]} Qe6 {[%emt 0:00:12]} 21. Qf3 {[%emt 0:02:51]} Rc8 {[%emt 0:02:02]} 22. Qe2 {[%emt 0:02:22]} Ba6 {[%emt 0:00:12]} 23. Qf3 {[%emt 0:01:54]} Bb7 {[%emt 0:03:45]} 24. Qe2 {[%emt 0:00:22]} h3 {[%emt 0:18:01]} 25. f3 {[%emt 0:00:38]} Ba6 {[%emt 0:00:40]} 26. fxe4 {[%emt 0:00:36]} Bxc4 {[%emt 0:00:05]} 27. Qf3 {[%emt 0:00:31]} Be2+ {[%emt 0:02:36]} 28. Kb1 {[%emt 0:00:20]} Bxf3 {[%emt 0:00:07]} 29. gxf3 {[%emt 0:00:07]} Ke7 {[%emt 0:00:20]} 30. Ba6 {[%emt 0:01:01]} Rc5 {[%emt 0:00:21]} 31. Rd3 {[%emt 0:00:32]} Qd7 {[%emt 0:05:39]} 32. Rhd1 {[%emt 0:00:27]} Qa4 {[%emt 0:00:24]} 33. Bb7 {[%emt 0:00:33]} Qc2+ {[%emt 0:00:19]} 34. Ka2 {[%emt 0:00:25]} Rb5 {[%emt 0:00:12]} 35. R3d2 {[%emt 0:00:36]} Rxb2+ {[%emt 0:00:06]} 36. Ka1 {[%emt 0:00:01]} Ra2# {[%emt 0:00:06]} 0-1

[Event "Najdorf Memorial-A 2022"]
[Site "Warsaw"]
[Date "2022.07.10"]
[Round "2.13"]
[White "Hackner, Oskar A"]
[Black "Zalega, Maciej"]
[Result "0-1"]
[ECO "A05"]
[WhiteElo "2178"]
[BlackElo "1912"]
[Annotator "RC"]
[PlyCount "102"]
[EventDate "2022.07.09"]
[EventType "swiss"]
[EventCountry "POL"]
[SourceTitle "playchess.com"]
[Source "ChessBase"]
[SourceQuality "1"]
[TimeControl "40/5400+30:1800+30"]

1. Nf3 Nf6 2. b4 e6 3. a3 d5 4. e3 Bd6 5. Bb2 O-O 6. c4 c5 7. bxc5 Bxc5 8. d4 Be7 9. Nbd2 Nc6 10. Bd3 dxc4 11. Nxc4 b5 12. Ncd2 Qb6 13. O-O Bd7 14. Qe2 a6 15. Rfc1 Rfc8 16. Nb3 Na5 17. Nxa5 Qxa5 18. Ne5 Be8 19. f4 Nd5 20. f5 Bg5 21. Rxc8 Rxc8 22. e4 Nf4 23. Qd1 exf5 24. exf5 Nxd3 25. Qxd3 Qd2 26. Qxd2 Bxd2 27. Nf3 Rc2 28. Nxd2 Rxb2 29. Re1 Kf8 30. Nf3 Bc6 31. Ne5 Rxg2+ 32. Kf1 Rc2 33. d5 Be8 34. f6 gxf6 35. Ng4 Rc4 36. Ne3 Rd4 37. Rc1 f5 38. Rc8 f4 39. Ng4 Ke7 40. Ra8 Bd7 41. Nh6 Ra4 42. Ra7 Rxa3 43. Nxf7 Kxf7 44. Rxd7+ Kf6 45. Rxh7 Ke5 46. Rd7 b4 47. d6 b3 48. Ke2 Ra2+ 49. Kd3 Rxh2 50. Rb7 Kxd6 51. Rb6+ Ke5 0-1

[Event "Najdorf Memorial-A 2022"]
[Site "Warsaw"]
[Date "2022.07.10"]
[Round "2.13"]
[White "Rozumek, Krzysztof"]
[Black "Padalka, Artem"]
[Result "0-1"]
[ECO "A00"]
[WhiteElo "1801"]
[BlackElo "2204"]
[Annotator "RC"]
[PlyCount "96"]
[EventDate "2022.07.09"]
[EventType "swiss"]
[EventCountry "POL"]
[SourceTitle "playchess.com"]
[Source "ChessBase"]
[SourceQuality "1"]
[TimeControl "40/5400+30:1800+30"]

1. h3 {[%emt 0:00:02]} e5 {[%emt 0:16:40]} 2. c3 {[%emt 0:00:02]} d6 {[%emt 0:07:24]} 3. e4 {[%emt 0:01:01]} Nf6 {[%emt 0:03:05]} 4. d3 {[%emt 0:00:06]} g6 {[%emt 0:00:43]} 5. Be3 {[%emt 0:03:36]} Bg7 {[%emt 0:00:47]} 6. Nf3 {[%emt 0:01:12]} O-O {[%emt 0:01:12]} 7. Qd2 {[%emt 0:00:25]} d5 {[%emt 0:06:15]} 8. Nxe5 {[%emt 0:02:50]} Qe7 {[%emt 0:06:05]} 9. Ng4 {[%emt 0:07:11]} Bxg4 {[%emt 0:07:09]} 10. hxg4 {[%emt 0:00:20]} dxe4 {[%emt 0:01:23]} 11. g5 {[%emt 0:01:08]} Nd5 {[%emt 0:02:43]} 12. d4 {[%emt 0:00:19]} Nd7 {[%emt 0:03:52]} 13. Bc4 {[%emt 0:02:30]} N7b6 {[%emt 0:01:29]} 14. Bb3 {[%emt 0:02:38]} Rad8 {[%emt 0:04:58]} 15. Qe2 {[%emt 0:00:48]} c5 {[%emt 0:04:27]} 16. dxc5 {[%emt 0:29:17]} Nxe3 {[%emt 0:00:25]} 17. cxb6 {[%emt 0:00:05]} Nxg2+ {[%emt 0:01:05]} 18. Kf1 {[%emt 0:00:02]} Nf4 {[%emt 0:02:35]} 19. Qg4 {[%emt 0:02:27]} Nd3 {[%emt 0:02:50]} 20. Qh3 {[%emt 0:03:04]} Rfe8 {[%emt 0:05:13]} 21. bxa7 {[%emt 0:10:13]} Qxg5 {[%emt 0:01:57]} 22. Qe3 {[%emt 0:00:03]} Qxe3 {[%emt 0:01:08]} 23. fxe3 {[%emt 0:00:02]} Ra8 {[%emt 0:04:23]} 24. Ke2 {[%emt 0:00:38]} Rxa7 {[%emt 0:02:34]} 25. Nd2 {[%emt 0:04:17]} Nxb2 {[%emt 0:00:41]} 26. Raf1 {[%emt 0:00:21]} b5 {[%emt 0:00:36]} 27. Rh4 {[%emt 0:00:42]} Na4 {[%emt 0:01:02]} 28. Nxe4 {[%emt 0:04:30]} Rxe4 {[%emt 0:01:09]} 29. Rxe4 {[%emt 0:00:02]} Nxc3+ {[%emt 0:00:07]} 30. Kf3 {[%emt 0:00:31]} Nxe4 {[%emt 0:00:08]} 31. Kxe4 {[%emt 0:00:01]} b4 {[%emt 0:02:15]} 32. Rd1 {[%emt 0:01:23]} Bc3 {[%emt 0:00:39]} 33. Kf3 {[%emt 0:00:14]} Kg7 {[%emt 0:00:15]} 34. e4 {[%emt 0:00:03]} h5 {[%emt 0:00:35]} 35. Rd8 Be5 {[%emt 0:02:13]} 36. Rd5 {[%emt 0:03:23]} f6 {[%emt 0:03:18]} 37. Rb5 {[%emt 0:00:34]} Bc3 {[%emt 0:00:03]} 38. Bd5 Kh6 39. Rb8 {[%emt 0:01:48]} Rc7 {[%emt 0:02:24]} 40. Rb6 {[%emt 0:00:00]} Rc5 41. Rc6 {[%emt 0:03:08]} Rxc6 {[%emt 0:07:55]} 42. Bxc6 {[%emt 0:00:19]} Be5 {[%emt 0:01:03]} 43. Bd7 g5 {[%emt 0:00:41]} 44. Bf5 {[%emt 0:07:06]} g4+ {[%emt 0:00:48]} 45. Kf2 {[%emt 0:01:38]} Kg5 {[%emt 0:00:13]} 46. Kg2 {[%emt 0:00:18]} h4 {[%emt 0:00:37]} 47. Be6 {[%emt 0:01:34]} h3+ {[%emt 0:00:36]} 48. Kh1 {[%emt 0:00:36]} Kh4 0-1

[Event "Najdorf Memorial-A 2022"]
[Site "Warsaw"]
[Date "2022.07.10"]
[Round "2.14"]
[White "Adamski, Jan"]
[Black "Lasota, Adam"]
[Result "1/2-1/2"]
[ECO "E17"]
[WhiteElo "2136"]
[BlackElo "1892"]
[Annotator "NA RC"]
[PlyCount "79"]
[EventDate "2022.07.09"]
[EventType "swiss"]
[EventCountry "POL"]
[SourceTitle "playchess.com"]
[Source "ChessBase"]
[SourceQuality "1"]
[TimeControl "40/5400+30:1800+30"]

1. Nf3 {[%emt 0:00:12]} b6 {[%emt 0:00:05]} 2. g3 {[%emt 0:00:39]} Bb7 {[%emt 0:00:05]} 3. Bg2 {[%emt 0:00:07]} e6 {[%emt 0:00:05]} 4. c4 {[%emt 0:02:17]} Nf6 {[%emt 0:00:40]} 5. d4 {[%emt 0:02:34]} Be7 {[%emt 0:00:35]} 6. Nc3 {[%emt 0:00:33]} O-O {[%emt 0:00:09]} 7. Qc2 {[%emt 0:01:35]} Bb4 {[%emt 0:20:15]} 8. Bg5 {[%emt 0:08:07]} Bxc3+ {[%emt 0:12:51]} 9. Qxc3 {[%emt 0:02:20]} Be4 {[%emt 0:02:27]} 10. O-O {[%emt 0:09:16]} h6 {[%emt 0:06:49]} 11. Bxf6 {[%emt 0:04:33]} Qxf6 {[%emt 0:00:11]} 12. Rac1 {[%emt 0:04:46]} Nc6 {[%emt 0:03:56]} 13. Rfd1 {[%emt 0:05:21]} Rad8 {[%emt 0:04:52]} 14. d5 {[%emt 0:11:35]} Qxc3 {[%emt 0:01:06]} 15. Rxc3 {[%emt 0:00:03]} Bxf3 {[%emt 0:03:45]} 16. Bxf3 {[%emt 0:05:48]} Ne5 {[%emt 0:00:27]} 17. Bg2 {[%emt 0:01:23]} d6 {[%emt 0:10:06]} 18. b4 {[%emt 0:10:16]} g5 {[%emt 0:10:48]} 19. Rdc1 {[%emt 0:02:47]} Nd7 {[%emt 0:03:18]} 20. Ra3 {[%emt 0:02:31]} a5 {[%emt 0:04:07]} 21. bxa5 {[%emt 0:00:31]} e5 {[%emt 0:00:35]} 22. axb6 {[%emt 0:01:09]} cxb6 {[%emt 0:00:26]} 23. Ra7 {[%emt 0:07:39]} f5 {[%emt 0:04:47]} 24. Rb1 {[%emt 0:08:23]} e4 {[%emt 0:03:12]} 25. g4 {[%emt 0:01:01]} fxg4 {[%emt 0:00:15]} 26. Bxe4 {[%emt 0:00:17]} Rf7 {[%emt 0:00:45]} 27. a4 {[%emt 0:03:20]} Rf4 {[%emt 0:01:05]} 28. Bd3 {[%emt 0:00:55]} Rf7 {[%emt 0:02:25]} 29. Bg6 {[%emt 0:01:45]} Rf4 {[%emt 0:00:26]} 30. a5 {[%emt 0:01:28]} bxa5 {[%emt 0:02:10]} 31. Rbb7 {[%emt 0:00:06]} Ne5 {[%emt 0:00:44]} 32. Bd3 {[%emt 0:02:28]} Rf7 {[%emt 0:00:26]} 33. Rxf7 {[%emt 0:00:20]} Nxf7 {[%emt 0:00:02]} 34. Rxa5 {[%emt 0:00:11]} Kg7 {[%emt 0:00:15]} 35. c5 {[%emt 0:01:03]} dxc5 {[%emt 0:00:30]} 36. Rxc5 {[%emt 0:00:02]} Ne5 {[%emt 0:00:44]} 37. Be4 {[%emt 0:00:43]} Kf6 {[%emt 0:00:46]} 38. Rb5 {[%emt 0:00:41]} Nf7 {[%emt 0:00:20]} 39. Rb6+ {[%emt 0:00:18]} Nd6 {[%emt 0:00:06]} 40. Bd3 {[%emt 0:00:00]} 1/2-1/2

[Event "Najdorf Memorial-A 2022"]
[Site "Warsaw"]
[Date "2022.07.10"]
[Round "2.14"]
[White "Kotowicz, Kamil"]
[Black "Kaczmarek, Arkadiusz"]
[Result "1/2-1/2"]
[ECO "D24"]
[WhiteElo "1770"]
[BlackElo "2147"]
[Annotator "NA RC"]
[PlyCount "26"]
[EventDate "2022.07.09"]
[EventType "swiss"]
[EventCountry "POL"]
[SourceTitle "playchess.com"]
[Source "ChessBase"]
[SourceQuality "1"]
[TimeControl "40/5400+30:1800+30"]

1. d4 {[%emt 0:00:10]} d5 2. Nf3 {[%emt 0:00:15]} Nf6 {[%emt 0:00:29]} 3. c4 dxc4 {[%emt 0:00:28]} 4. Nc3 {[%emt 0:01:04]} a6 {[%emt 0:01:04]} 5. a4 {[%emt 0:00:59]} Nc6 {[%emt 0:00:32]} 6. e4 {[%emt 0:03:04]} Na5 {[%emt 0:13:21]} 7. Ne5 {[%emt 0:02:24]} c5 {[%emt 0:02:24]} 8. d5 {[%emt 0:02:17]} e6 {[%emt 0:14:42]} 9. Nxc4 {[%emt 0:02:19]} exd5 {[%emt 0:00:52]} 10. exd5 {[%emt 0:01:19]} Nxc4 {[%emt 0:08:24]} 11. Bxc4 {[%emt 0:00:51]} Bd6 {[%emt 0:00:11]} 12. Bg5 {[%emt 0:04:00]} Qe7+ {[%emt 0:12:00]} 13. Qe2 {[%emt 0:01:46]} Qxe2+ {[%emt 0:00:40]} 1/2-1/2

[Event "Najdorf Memorial-A 2022"]
[Site "Warsaw"]
[Date "2022.07.10"]
[Round "2.15"]
[White "Dalkowski, Rafal"]
[Black "Wolski, Jaroslaw"]
[Result "1-0"]
[ECO "E81"]
[WhiteElo "2120"]
[BlackElo "1889"]
[Annotator "NA RC"]
[PlyCount "99"]
[EventDate "2022.07.09"]
[EventType "swiss"]
[EventCountry "POL"]
[SourceTitle "playchess.com"]
[Source "ChessBase"]
[SourceQuality "1"]
[TimeControl "40/5400+30:1800+30"]

1. d4 {[%emt 0:00:02]} Nf6 {[%emt 0:00:29]} 2. c4 {[%emt 0:00:08]} g6 {[%emt 0:00:06]} 3. Nc3 {[%emt 0:00:05]} Bg7 {[%emt 0:00:30]} 4. e4 {[%emt 0:00:07]} O-O {[%emt 0:00:31]} 5. f3 {[%emt 0:00:48]} d6 {[%emt 0:00:41]} 6. Nge2 {[%emt 0:00:15]} Nc6 {[%emt 0:01:30]} 7. Be3 {[%emt 0:00:21]} e5 {[%emt 0:00:29]} 8. d5 {[%emt 0:00:05]} Na5 {[%emt 0:00:07]} 9. Nc1 {[%emt 0:01:24]} c5 {[%emt 0:00:40]} 10. dxc6 {[%emt 0:07:47]} bxc6 {[%emt 0:00:20]} 11. b4 {[%emt 0:12:22]} Nb7 {[%emt 0:00:07]} 12. g4 {[%emt 0:03:25]} Be6 {[%emt 0:03:57]} 13. Nb3 {[%emt 0:10:43]} d5 {[%emt 0:02:14]} 14. cxd5 {[%emt 0:00:41]} cxd5 {[%emt 0:00:09]} 15. Ba6 {[%emt 0:13:32]} d4 {[%emt 0:00:28]} 16. Bxb7 {[%emt 0:00:29]} Rb8 {[%emt 0:00:01]} 17. Nc5 {[%emt 0:03:08]} Nd7 {[%emt 0:02:27]} 18. Bd5 {[%emt 0:03:42]} dxe3 {[%emt 0:00:22]} 19. O-O {[%emt 0:07:33]} Nxc5 {[%emt 0:01:31]} 20. bxc5 {[%emt 0:00:08]} Qc7 {[%emt 0:00:20]} 21. c6 {[%emt 0:01:02]} Qb6 {[%emt 0:00:19]} 22. Kh1 {[%emt 0:02:35]} Bh6 {[%emt 0:00:30]} 23. Qc2 {[%emt 0:05:24]} Qc5 {[%emt 0:03:36]} 24. Rac1 {[%emt 0:00:44]} Bf4 {[%emt 0:02:07]} 25. a4 {[%emt 0:01:27]} Qa3 {[%emt 0:00:48]} 26. Rb1 {[%emt 0:05:00]} Qc5 {[%emt 0:01:16]} 27. Qd3 {[%emt 0:03:25]} Qa3 {[%emt 0:01:15]} 28. Bxe6 {[%emt 0:01:03]} Rxb1 {[%emt 0:00:17]} 29. Rxb1 {[%emt 0:00:15]} fxe6 {[%emt 0:00:14]} 30. Qc4 {[%emt 0:01:20]} e2 {[%emt 0:01:03]} 31. c7 {[%emt 0:02:24]} e1=Q+ {[%emt 0:01:25]} 32. Rxe1 {[%emt 0:00:14]} Qb2 {[%emt 0:00:24]} 33. Re2 {[%emt 0:01:20]} Qc1+ {[%emt 0:01:38]} 34. Kg2 {[%emt 0:00:04]} Be3 {[%emt 0:00:19]} 35. Rxe3 {[%emt 0:00:17]} Qxe3 {[%emt 0:00:10]} 36. Qxe6+ {[%emt 0:01:33]} Kg7 {[%emt 0:00:11]} 37. Qe7+ {[%emt 0:01:30]} Rf7 {[%emt 0:00:32]} 38. Qxf7+ {[%emt 0:01:11]} Kxf7 {[%emt 0:00:03]} 39. c8=Q {[%emt 0:00:08]} Qd2+ {[%emt 0:00:29]} 40. Kf1 {[%emt 0:00:00]} Qc1+ {[%emt 0:00:00]} 41. Ke2 {[%emt 0:00:55]} Qc2+ {[%emt 0:01:27]} 42. Ke3 {[%emt 0:00:11]} Qxh2 {[%emt 0:00:25]} 43. Kd3 {[%emt 0:01:06]} Qf4 {[%emt 0:00:24]} 44. Qb7+ {[%emt 0:01:00]} Kg8 {[%emt 0:00:10]} 45. Qb8+ {[%emt 0:00:11]} Kg7 {[%emt 0:00:20]} 46. Qxa7+ {[%emt 0:00:03]} Kg8 {[%emt 0:00:17]} 47. Qe3 {[%emt 0:00:29]} Qf8 {[%emt 0:00:47]} 48. Ke2 {[%emt 0:01:01]} Qa3 {[%emt 0:00:34]} 49. Qd2 {[%emt 0:00:17]} Qa1 {[%emt 0:00:29]} 50. Qa2+ {[%emt 0:00:15]} 1-0

[Event "Najdorf Memorial-A 2022"]
[Site "Warsaw"]
[Date "2022.07.10"]
[Round "2.15"]
[White "Jaskiewicz, Kacper"]
[Black "Musial, Tomasz"]
[Result "1/2-1/2"]
[ECO "C11"]
[WhiteElo "1756"]
[BlackElo "2131"]
[Annotator "NA RC"]
[PlyCount "47"]
[EventDate "2022.07.09"]
[EventType "swiss"]
[EventCountry "POL"]
[SourceTitle "playchess.com"]
[Source "ChessBase"]
[SourceQuality "1"]
[TimeControl "40/5400+30:1800+30"]

1. e4 {[%emt 0:00:01]} e6 {[%emt 0:00:10]} 2. d4 {[%emt 0:00:01]} d5 {[%emt 0:00:09]} 3. Nc3 {[%emt 0:00:02]} Nf6 {[%emt 0:00:11]} 4. Bg5 {[%emt 0:00:04]} dxe4 {[%emt 0:00:30]} 5. Nxe4 {[%emt 0:00:03]} Be7 {[%emt 0:00:10]} 6. Bxf6 {[%emt 0:00:03]} gxf6 {[%emt 0:00:12]} 7. Nf3 {[%emt 0:00:02]} f5 {[%emt 0:00:32]} 8. Nc3 {[%emt 0:00:02]} a6 {[%emt 0:00:38]} 9. g3 {[%emt 0:00:02]} b5 {[%emt 0:00:21]} 10. Bg2 {[%emt 0:00:03]} Bb7 {[%emt 0:00:23]} 11. O-O {[%emt 0:00:04]} c5 {[%emt 0:00:29]} 12. d5 {[%emt 0:00:44]} b4 {[%emt 0:00:14]} 13. dxe6 {[%emt 0:00:05]} bxc3 {[%emt 0:00:35]} 14. exf7+ {[%emt 0:00:04]} Kf8 {[%emt 0:00:11]} 15. Qe2 {[%emt 0:00:09]} Qb6 {[%emt 0:05:07]} 16. Rfe1 {[%emt 0:00:07]} Qf6 {[%emt 0:00:42]} 17. Rad1 {[%emt 0:02:36]} Ra7 {[%emt 0:11:19]} 18. Ng5 {[%emt 0:25:34]} Qxg5 {[%emt 0:12:37]} 19. Qe5 {[%emt 0:00:07]} Kxf7 {[%emt 0:04:21]} 20. Qxh8 {[%emt 0:00:20]} Bxg2 {[%emt 0:01:16]} 21. Qxh7+ {[%emt 0:03:40]} Qg7 {[%emt 0:00:42]} 22. Qxf5+ {[%emt 0:00:20]} Qf6 {[%emt 0:01:35]} 23. Qh7+ {[%emt 0:02:28]} Qg7 {[%emt 0:00:26]} 24. Qf5+ {[%emt 0:01:29]} 1/2-1/2

[Event "Najdorf Memorial-A 2022"]
[Site "Warsaw"]
[Date "2022.07.10"]
[Round "2.16"]
[White "Pires, Emanuel Joao Robarts"]
[Black "Celinski, Kamil"]
[Result "1-0"]
[ECO "C47"]
[WhiteElo "2062"]
[BlackElo "1876"]
[Annotator "RC"]
[PlyCount "141"]
[EventDate "2022.07.09"]
[EventType "swiss"]
[EventCountry "POL"]
[SourceTitle "playchess.com"]
[Source "ChessBase"]
[SourceQuality "1"]
[TimeControl "40/5400+30:1800+30"]

1. e4 {[%emt 0:00:21]} e5 {[%emt 0:00:04]} 2. Bc4 {[%emt 0:00:11]} Nf6 {[%emt 0:00:04]} 3. Nf3 {[%emt 0:00:20]} Nc6 {[%emt 0:00:11]} 4. Nc3 {[%emt 0:00:34]} Nxe4 {[%emt 0:00:04]} 5. O-O {[%emt 0:03:28]} Be7 {[%emt 0:01:32]} 6. Nxe4 {[%emt 0:05:22]} d5 {[%emt 0:00:02]} 7. Bd3 {[%emt 0:04:42]} dxe4 {[%emt 0:00:53]} 8. Bxe4 {[%emt 0:00:02]} Qd6 {[%emt 0:02:11]} 9. Re1 {[%emt 0:05:10]} Bg4 {[%emt 0:08:31]} 10. h3 {[%emt 0:02:48]} Bxf3 {[%emt 0:07:58]} 11. Qxf3 {[%emt 0:04:12]} O-O {[%emt 0:00:55]} 12. c3 {[%emt 0:04:22]} f5 {[%emt 0:02:42]} 13. Bxc6 {[%emt 0:05:58]} bxc6 {[%emt 0:02:53]} 14. d4 {[%emt 0:00:30]} e4 {[%emt 0:01:50]} 15. Qe2 {[%emt 0:01:20]} Rae8 {[%emt 0:00:58]} 16. b3 {[%emt 0:07:19]} Qg6 {[%emt 0:01:47]} 17. Bf4 {[%emt 0:11:47]} Bg5 {[%emt 0:05:27]} 18. Qc4+ {[%emt 0:07:26]} Kh8 {[%emt 0:00:51]} 19. Bxg5 {[%emt 0:00:13]} Qxg5 {[%emt 0:00:14]} 20. Qxc6 {[%emt 0:00:33]} Re7 {[%emt 0:03:01]} 21. Qc5 {[%emt 0:02:39]} Rfe8 {[%emt 0:00:56]} 22. Re3 {[%emt 0:03:24]} Qf6 {[%emt 0:01:17]} 23. f4 {[%emt 0:06:33]} g5 {[%emt 0:02:06]} 24. Rf1 {[%emt 0:02:31]} Rg7 {[%emt 0:08:25]} 25. fxg5 {[%emt 0:04:13]} Qxg5 {[%emt 0:00:18]} 26. Re2 {[%emt 0:00:14]} Rf7 {[%emt 0:03:23]} 27. Qd5 {[%emt 0:04:07]} Qg6 {[%emt 0:01:30]} 28. Rf4 {[%emt 0:03:26]} c6 {[%emt 0:01:56]} 29. Qc5 {[%emt 0:03:23]} Ree7 {[%emt 0:07:39]} 30. d5 {[%emt 0:01:39]} cxd5 {[%emt 0:05:17]} 31. Qxd5 {[%emt 0:00:03]} Rd7 {[%emt 0:00:43]} 32. Qe5+ {[%emt 0:00:54]} Kg8 {[%emt 0:02:13]} 33. Qe8+ {[%emt 0:00:27]} Kg7 {[%emt 0:00:29]} 34. Qe5+ {[%emt 0:01:00]} Kg8 {[%emt 0:00:07]} 35. Rf1 {[%emt 0:02:17]} Rd3 {[%emt 0:03:39]} 36. c4 {[%emt 0:02:19]} Rxh3 {[%emt 0:01:43]} 37. Rxe4 {[%emt 0:00:03]} Rg3 {[%emt 0:02:01]} 38. Re2 {[%emt 0:00:42]} h5 {[%emt 0:01:18]} 39. Rd1 {[%emt 0:01:42]} Kh7 {[%emt 0:00:59]} 40. c5 {[%emt 0:00:00]} Rg7 {[%emt 0:00:00]} 41. Rdd2 {[%emt 0:07:55]} h4 {[%emt 0:12:25]} 42. c6 {[%emt 0:07:06]} Qxc6 {[%emt 0:00:34]} 43. Qxf5+ Qg6 {[%emt 0:00:07]} 44. Qxg6+ {[%emt 0:04:00]} R3xg6 {[%emt 0:00:21]} 45. Re3 {[%emt 0:06:41]} Rg4 {[%emt 0:01:08]} 46. Kh2 {[%emt 0:05:27]} a5 {[%emt 0:05:15]} 47. a3 {[%emt 0:02:17]} Rb7 {[%emt 0:04:47]} 48. Kh3 {[%emt 0:00:27]} Rbg7 {[%emt 0:01:40]} 49. Rb2 {[%emt 0:01:39]} a4 {[%emt 0:00:34]} 50. bxa4 {[%emt 0:00:47]} Rxa4 51. Rb4 Rga7 {[%emt 0:01:13]} 52. Rxh4+ {[%emt 0:00:46]} Rxh4+ {[%emt 0:00:37]} 53. Kxh4 {[%emt 0:00:01]} Kg6 {[%emt 0:00:07]} 54. Rf3 {[%emt 0:01:01]} Ra5 {[%emt 0:01:26]} 55. Kg3 {[%emt 0:00:53]} Kg5 {[%emt 0:00:47]} 56. Kf2 {[%emt 0:00:12]} Rb5 {[%emt 0:00:26]} 57. Ke3 {[%emt 0:00:53]} Rb2 {[%emt 0:00:06]} 58. Kd4 {[%emt 0:00:25]} Rxg2 {[%emt 0:02:38]} 59. Kc4 {[%emt 0:00:27]} Rg1 {[%emt 0:01:50]} 60. a4 {[%emt 0:00:22]} Ra1 {[%emt 0:01:02]} 61. Kb5 {[%emt 0:00:13]} Rb1+ {[%emt 0:00:11]} 62. Ka6 {[%emt 0:00:32]} Kg6 {[%emt 0:00:28]} 63. a5 {[%emt 0:00:09]} Kg7 {[%emt 0:00:19]} 64. Ka7 {[%emt 0:00:03]} Rb5 {[%emt 0:00:16]} 65. a6 {[%emt 0:00:02]} Rb4 {[%emt 0:00:24]} 66. Ka8 {[%emt 0:00:02]} Rb2 {[%emt 0:00:24]} 67. a7 {[%emt 0:01:28]} Rb1 {[%emt 0:00:21]} 68. Rc3 {[%emt 0:00:48]} Kh6 {[%emt 0:01:40]} 69. Rc8 {[%emt 0:01:12]} Kh5 {[%emt 0:01:35]} 70. Rb8 {[%emt 0:00:09]} Rg1 {[%emt 0:00:08]} 71. Rh8+ {[%emt 0:00:08]} 1-0